bitfinex/quotes_ETHUSD_20260114
["timestamp","ask_amount","ask_price","bid_price","bid_amount"]
[1768415602524,0.93297835,3332.6,3331.2,0.96717893]
[1768415602725,0.93297835,3332.6,3331.3,3.00178915]
[1768415602886,6.00150036,3332.5,3331.3,3.00183111]
[1768415603093,0.69344787,3332.4,3331.3,3.00183111]
[1768415603317,1.62642622,3332.4,3331.3,3.00183111]
[1768415603517,1.62642622,3332.4,3331.2,3.96906094]
[1768415604019,0.93297835,3333.4,3331.3,0.99519724]
[1768415604225,1.33697835,3333.3,3331.3,0.96517893]
[1768415604409,1.33697835,3333.3,3331.5,0.96517893]
[1768415604604,1.33697835,3333.3,3331.7,0.96517893]
[1768415604927,0.001,3333.5,3331.9,0.96517893]
[1768415605096,0.001,3333.5,3332.1,0.96517893]
[1768415605432,0.001,3333.5,3332.3,0.96517893]
[1768415607027,0.001,3333.5,3331.5,0.96517893]
[1768415607028,0.93297835,3333.4,3331.5,0.96517893]
[1768415607230,0.43508619,3333.5,3331.0,3.00204283]
[1768415607231,0.93297835,3333.2,3331.6,0.398]
[1768415607427,0.405,3333.5,3331.1,0.96517893]
[1768415607428,0.93297835,3333.0,3331.1,0.96517893]
[1768415607613,0.93297835,3332.8,3330.9,3.40018286]
[1768415607802,0.03008619,3332.7,3331.1,3.00192374]
[1768415608125,0.93297835,3332.6,3331.2,3.3042493]
[1768415608323,0.93297835,3332.6,3331.3,3.00182761]
[1768415608500,0.93297835,3332.6,3331.3,3.00179497]
[1768415608894,0.93297835,3332.6,3331.3,3.00179544]
[1768415609100,6.93447871,3332.5,3331.2,3.30430839]
[1768415609302,0.69645649,3332.4,3331.2,3.00391602]
[1768415609501,0.69645649,3332.4,3331.2,3.00389254]
[1768415609932,0.69645649,3332.4,3331.2,6.00581376]
[1768415610135,1.33697835,3332.9,3331.2,6.00581376]
[1768415610136,3.00048007,3332.8,3331.3,0.99519724]
[1768415610306,0.404,3332.7,3331.3,0.03001831]
[1768415610508,0.93297835,3332.6,3331.2,3.00390325]
[1768415610916,0.93297835,3332.6,3331.2,6.00582447]
[1768415611116,3.00075018,3332.5,3331.2,0.002]
[1768415611321,0.79737285,3332.4,3331.2,0.002]
[1768415611632,0.93297835,3332.3,3331.2,0.002]
[1768415612222,0.79737285,3332.4,3331.2,0.002]
[1768415612530,0.93297835,3332.2,3331.2,0.002]
[1768415613334,3.00111041,3332.1,3331.2,0.002]
[1768415613506,0.39340888,3332.0,3331.2,0.002]
[1768415614109,0.39340888,3332.0,3330.2,0.96517893]
[1768415614110,0.93297835,3331.9,3330.2,0.96517893]
[1768415614433,0.93297835,3331.9,3330.5,3.00252512]
[1768415614635,0.93297835,3331.9,3330.5,3.00251498]
[1768415614805,0.93297835,3331.9,3330.2,0.95517893]
[1768415615244,0.93297835,3331.9,3330.2,3.95799758]
[1768415615438,0.93297835,3331.7,3329.8,1.15455514]
[1768415615638,0.93297835,3331.5,3329.8,1.15455514]
[1768415617310,3.18971202,3331.6,3329.8,1.15455514]
[1768415617311,0.93297835,3331.1,3329.8,1.15455514]
[1768415617507,0.93297835,3330.9,3329.8,1.15455514]
[1768415617711,0.93297835,3330.9,3329.0,0.96517893]
[1768415617942,0.93297835,3330.9,3328.7,3.00411491]
[1768415618146,0.404,3331.0,3327.8,3.00494058]
[1768415618147,0.93297835,3330.5,3327.8,0.96517893]
[1768415618351,1.792,3330.6,3328.2,3.00454783]
[1768415618352,0.93297835,3330.3,3328.2,3.00454783]
[1768415618553,0.93297835,3330.2,3327.9,0.96517893]
[1768415618847,0.93297835,3330.2,3327.4,3.00531289]
[1768415618848,0.93297835,3330.2,3328.1,3.00471302]
[1768415619019,0.93297835,3330.2,3328.1,3.00471402]
[1768415619339,0.93297835,3329.8,3327.6,3.00515263]
[1768415619646,0.93297835,3329.8,3326.7,0.96517893]
[1768415619647,0.93297835,3329.1,3326.7,0.96517893]
[1768415619844,0.93297835,3328.9,3326.7,0.94261123]
[1768415620053,0.404,3328.8,3326.9,0.96517893]
[1768415620226,0.128,3329.5,3327.5,3.0052592]
[1768415620414,0.93297835,3329.3,3327.6,0.30052592]
[1768415620840,0.404,3329.2,3327.6,0.30052592]
[1768415621145,0.93297835,3329.3,3327.7,0.96517893]
[1768415621343,6.00690794,3329.5,3327.8,6.00997656]
[1768415621554,0.404,3329.2,3327.7,3.9702388]
[1768415621743,0.404,3329.2,3327.8,0.42707647]
[1768415621949,1.06097835,3329.1,3327.3,0.96517893]
[1768415622159,1.06097835,3329.1,3327.4,3.00528093]
[1768415622457,0.93297835,3328.9,3327.1,3.00561082]
[1768415622750,0.93297835,3328.9,3327.6,3.00513734]
[1768415623050,0.404,3328.8,3327.5,3.00523433]
[1768415623251,1.33697835,3328.7,3327.5,0.60105847]
[1768415623541,6.4125321,3328.6,3327.0,0.96517893]
[1768415623714,3.40826605,3328.6,3327.0,0.96517893]
[1768415623915,0.404,3328.5,3327.2,0.96517893]
[1768415624975,0.93297835,3329.1,3327.2,0.96517893]
[1768415625350,3.40795135,3329.0,3327.5,6.97569733]
[1768415625544,0.34079514,3328.9,3327.6,0.69756973]
[1768415625871,0.404,3328.8,3327.6,0.69756973]
[1768415626073,0.404,3328.8,3326.7,0.398]
[1768415626074,0.93297835,3328.7,3326.7,0.96517893]
[1768415626378,0.93297835,3328.7,3327.0,3.00570677]
[1768415626540,0.93297835,3328.7,3327.0,3.00570859]
[1768415626746,0.93297835,3328.5,3326.7,0.96517893]
[1768415626974,0.404,3328.6,3325.8,0.96517893]
[1768415626975,0.93297835,3328.3,3325.8,0.96517893]
[1768415627185,0.128,3328.4,3325.8,0.96517893]
[1768415627186,0.93297835,3328.1,3326.1,0.96517893]
[1768415627365,0.93297835,3328.1,3326.5,3.00616263]
[1768415627366,3.00480769,3328.0,3326.5,3.00616263]
[1768415627679,6.00961538,3328.0,3326.5,6.01232526]
[1768415627844,0.404,3327.9,3326.5,3.00616263]
[1768415628043,0.93297835,3327.8,3326.5,3.00616263]
[1768415628463,0.93297835,3327.8,3326.5,6.01232526]
[1768415628666,0.93297835,3327.8,3326.4,3.00623716]
[1768415628847,0.93297835,3327.8,3326.1,3.00650426]
[1768415629060,0.93297835,3327.6,3326.4,3.006253]
[1768415629260,0.93297835,3327.6,3325.0,3.00748366]
[1768415629261,0.93297835,3327.6,3325.9,3.00663221]
[1768415629443,0.93297835,3327.4,3325.7,6.01375874]
[1768415629645,0.32783291,3328.8,3325.9,0.96517893]
[1768415629857,0.93297835,3328.4,3326.1,0.96517893]
[1768415630170,0.128,3328.5,3326.3,0.96517893]
[1768415630349,1.33936737,3328.3,3326.3,0.96517893]
[1768415630555,0.96545356,3328.2,3326.3,0.96517893]
[1768415630857,0.93536737,3328.2,3325.9,0.95606025]
[1768415631172,0.404,3328.1,3326.8,0.002]
[1768415631468,3.00480769,3328.0,3326.8,0.002]
[1768415631641,0.404,3327.9,3326.8,0.002]
[1768415632251,3.00480769,3328.0,3326.8,0.002]
[1768415632456,0.404,3327.8,3326.8,0.002]
[1768415632656,1.04536154,3327.8,3326.8,0.002]
[1768415633056,0.64136154,3327.8,3326.8,0.002]
[1768415633246,0.404,3327.7,3326.8,0.002]
[1768415633445,3.40909214,3327.7,3326.8,0.002]
[1768415633658,0.03008619,3327.6,3326.8,0.002]
[1768415634147,7.34955165,3327.7,3326.1,0.93606025]
[1768415634363,0.73495517,3327.6,3326.1,0.93606025]
[1768415634770,0.73495517,3327.6,3326.3,3.00632439]
[1768415634963,0.73495517,3327.6,3326.4,3.00624363]
[1768415635309,0.73495517,3327.6,3326.4,3.00623043]
[1768415635776,0.404,3327.5,3326.5,0.98612187]
[1768415635976,0.404,3327.4,3326.5,0.95606025]
[1768415636148,0.404,3327.4,3326.4,3.96229068]
[1768415636149,0.03008619,3327.3,3326.4,3.96229068]
[1768415636349,0.03008619,3327.3,3326.4,0.95606025]
[1768415636678,0.03008619,3327.3,3325.6,0.95606025]
[1768415636679,0.96545356,3327.3,3325.6,0.95606025]
[1768415636974,0.93536737,3327.3,3325.6,0.95606025]
[1768415637285,0.404,3327.4,3325.8,0.95606025]
[1768415637456,0.404,3327.4,3325.1,0.002]
[1768415637457,0.93536737,3328.1,3325.9,0.98612729]
[1768415637657,10.35379044,3328.0,3326.2,0.85606025]
[1768415637857,0.93536737,3327.9,3326.2,0.85606025]
[1768415638186,0.93536737,3327.9,3326.3,0.95606025]
[1768415638361,1.03537904,3327.8,3326.4,0.39624881]
[1768415639079,1.03537904,3327.8,3326.3,0.95606025]
[1768415639247,1.06336737,3327.7,3325.1,0.95806025]
[1768415639450,1.03537904,3327.8,3325.1,0.81006025]
[1768415639451,1.06336737,3327.4,3325.1,0.81006025]
[1768415639654,1.06336737,3327.4,3325.1,1.20806025]
[1768415639655,0.93536737,3327.2,3325.1,1.20806025]
[1768415639882,0.93536737,3327.0,3325.1,1.20806025]
[1768415640381,0.93536737,3326.6,3324.6,0.95606025]
[1768415640552,0.93536737,3326.4,3324.6,0.95606025]
[1768415640879,0.93536737,3326.4,3324.2,0.95606025]
[1768415641049,0.93536737,3326.2,3323.8,0.95606025]
[1768415641249,1.33936737,3326.2,3324.4,0.95606025]
[1768415641475,0.93536737,3326.1,3324.4,0.95606025]
[1768415641691,9.01984365,3326.0,3324.4,0.95606025]
[1768415643380,6.0132291,3326.0,3324.5,0.03007971]
[1768415643585,0.99551737,3325.9,3324.6,0.39941934]
[1768415643783,0.99551737,3325.9,3324.9,0.002]
[1768415643952,3.41045298,3326.2,3324.9,0.95806025]
[1768415644153,0.404,3326.7,3325.1,0.95606025]
[1768415644580,0.401,3326.7,3325.1,0.95606025]
[1768415645054,0.2,3327.3,3325.3,0.95606025]
[1768415645055,3.40953017,3327.2,3325.3,0.95606025]
[1768415645290,0.2,3327.3,3325.5,0.95606025]
[1768415645485,0.2,3327.3,3325.7,0.95606025]
[1768415645785,0.2,3327.3,3326.1,0.95606025]
[1768415646083,0.2,3327.3,3326.3,0.95606025]
[1768415646458,0.001,3327.7,3326.5,0.95606025]
[1768415647011,3.43814714,3328.9,3326.2,0.69692894]
[1768415647012,0.93536737,3329.5,3326.3,0.29967881]
[1768415647298,12.01345761,3329.6,3326.3,0.29967881]
[1768415647299,0.93536737,3328.7,3326.3,0.29967881]
[1768415647500,0.93536737,3328.5,3326.4,0.398]
[1768415647702,0.93536737,3328.3,3326.5,6.01232526]
[1768415647859,0.69442605,3328.2,3326.6,0.34277261]
[1768415648183,0.404,3328.6,3326.7,0.29967804]
[1768415648789,1.33936737,3329.2,3326.7,0.29967804]
[1768415649886,0.93536737,3329.1,3326.9,0.29967728]
[1768415650062,0.93536737,3329.1,3326.8,3.00589154]
[1768415650262,0.93536737,3328.9,3326.8,6.01178308]
[1768415650480,0.93536737,3328.9,3326.8,3.00589154]
[1768415650783,0.93536737,3328.9,3326.7,3.00597622]
[1768415650987,0.93536737,3328.9,3326.6,0.34277261]
[1768415650988,1.02569209,3328.9,3326.6,0.34277261]
[1768415651188,0.93536737,3328.7,3326.1,0.398]
[1768415651371,0.93536737,3328.7,3326.7,3.00596668]
[1768415651571,0.93536737,3328.7,3326.7,6.01194858]
[1768415651765,0.93536737,3328.5,3326.3,3.00626339]
[1768415652084,0.69438995,3328.4,3326.4,1.20158814]
[1768415652285,0.93536737,3328.5,3326.4,1.20158814]
[1768415652669,0.33246301,3329.7,3326.5,0.29967505]
[1768415652670,0.93536737,3329.0,3326.5,0.29967505]
[1768415653000,0.93536737,3329.0,3326.5,0.69667505]
[1768415653493,0.93536737,3329.0,3326.6,0.03006072]
[1768415653718,0.93536737,3329.0,3326.6,0.29967432]
[1768415653859,0.93536737,3328.8,3326.7,6.4089638]
[1768415654187,0.93536737,3328.8,3326.8,0.5372078]
[1768415655367,0.93536737,3328.8,3326.8,0.56726671]
[1768415655571,0.93536737,3328.8,3326.8,0.56926671]
[1768415655872,0.001,3328.5,3326.9,9.01740357]
[1768415656474,0.001,3328.5,3327.0,0.0300571]
[1768415656679,0.001,3328.5,3327.1,0.90191309]
[1768415657280,0.001,3328.5,3327.1,1.23164079]
[1768415657560,0.001,3328.5,3327.2,0.2996715]
[1768415657827,0.20446301,3329.7,3327.1,0.93196929]
[1768415657828,0.20446301,3329.7,3327.8,7.52206225]
[1768415658093,0.20446301,3329.7,3327.4,0.2996715]
[1768415658094,0.93536737,3329.6,3327.9,0.5372078]
[1768415658400,0.93536737,3329.6,3328.0,0.397]
[1768415658768,0.93536737,3329.6,3327.5,6.0105184]
[1768415658976,0.93536737,3329.6,3327.8,0.397]
[1768415659292,0.93536737,3329.4,3327.8,0.397]
[1768415660100,0.93536737,3329.4,3327.7,9.01523574]
[1768415660390,0.20446301,3329.7,3327.8,1.60119754]
[1768415660593,0.98872361,3329.6,3327.9,0.397]
[1768415660810,0.98872361,3329.6,3327.8,0.90452874]
[1768415660995,0.98872361,3329.6,3327.9,0.397]
[1768415661503,0.20446301,3329.7,3327.9,0.6966675]
[1768415661723,0.20446301,3329.7,3328.1,0.2996675]
[1768415661911,3.20776559,3329.7,3328.2,0.397]
[1768415662113,3.20776559,3329.7,3328.1,6.0094348]
[1768415662114,3.99217758,3329.5,3328.1,6.0094348]
[1768415662316,3.99217758,3329.5,3328.2,0.37447253]
[1768415662529,0.98872361,3329.5,3328.2,0.37447253]
[1768415663292,0.98872361,3329.5,3328.0,3.16491865]
[1768415663293,0.98872361,3329.5,3328.0,0.16011962]
[1768415663496,0.98872361,3329.5,3327.9,0.397]
[1768415663497,0.98872361,3329.5,3327.9,3.40187145]
[1768415663706,0.98872361,3329.5,3327.9,3.00487145]
[1768415663906,0.98872361,3329.5,3328.0,3.00479821]
[1768415664193,3.00354418,3329.4,3328.0,3.00479821]
[1768415664394,6.99581197,3329.4,3328.0,3.00479821]
[1768415664800,6.99581197,3329.4,3327.9,3.40186646]
[1768415665008,0.6995812,3329.3,3328.0,0.34018665]
[1768415665501,0.6995812,3329.3,3328.1,0.03004717]
[1768415665704,0.6995812,3329.3,3328.0,0.34018665]
[1768415666113,0.6995812,3329.3,3328.0,3.34490657]
[1768415666114,3.00372461,3329.2,3328.0,3.34490657]
[1768415668430,3.00372461,3329.2,3328.3,0.002]
[1768415668632,3.77329302,3329.2,3328.3,0.002]
[1768415669936,0.76956841,3329.2,3328.3,0.002]
[1768415670526,0.98872361,3329.0,3328.3,0.002]
[1768415671245,0.98872361,3329.0,3328.0,0.002]
[1768415671246,0.98872361,3328.9,3328.0,0.002]
[1768415671415,0.98872361,3328.9,3327.4,3.00533948]
[1768415671620,0.98872361,3328.9,3327.5,0.34023395]
[1768415672038,0.98872361,3328.9,3327.5,3.34543079]
[1768415672232,0.98872361,3328.9,3327.5,0.34023395]
[1768415672856,0.98872361,3328.7,3327.5,3.3454848]
[1768415673924,0.98872361,3328.7,3327.5,0.34023395]
[1768415674235,0.98872361,3328.6,3327.2,3.00547959]
[1768415674451,0.98872361,3328.6,3327.4,3.00534447]
[1768415674631,0.98872361,3328.6,3327.3,3.00539687]
[1768415674814,0.98872361,3328.4,3327.0,6.0114217]
[1768415675008,1.39172361,3328.4,3327.0,6.0114217]
[1768415675204,1.39172361,3328.4,3327.1,0.64084217]
[1768415675441,0.98872361,3328.3,3327.1,0.64084217]
[1768415677036,0.98872361,3328.1,3327.2,3.00553017]
[1768415677443,0.98872361,3328.1,3327.2,6.01106034]
[1768415678137,3.40748936,3328.4,3327.2,6.01106034]
[1768415678344,0.403,3328.4,3327.3,0.69524464]
[1768415678510,3.00410738,3328.8,3327.3,0.69524464]
[1768415678710,6.99693837,3328.8,3327.3,0.99490221]
[1768415679042,0.98872361,3328.7,3327.3,0.66519025]
[1768415679338,0.98872361,3328.7,3327.0,3.40266038]
[1768415679339,0.98872361,3328.5,3327.4,6.6783241]
[1768415679912,0.98872361,3328.5,3327.5,0.397]
[1768415681340,0.001,3328.0,3327.6,3.00516889]
[1768415681842,0.001,3328.0,3327.6,6.01033778]
[1768415682546,0.001,3328.0,3327.5,3.40221747]
[1768415682737,0.001,3328.0,3327.4,3.0073176]
[1768415683048,0.001,3328.0,3327.4,3.4043176]
[1768415683270,0.98972361,3328.0,3327.4,0.002]
[1768415684767,0.98972361,3328.0,3327.1,0.002]
[1768415685240,0.98872361,3327.9,3327.1,0.002]
[1768415685818,0.98872361,3327.8,3327.1,0.002]
[1768415686521,0.98872361,3327.7,3327.1,0.002]
[1768415688546,0.98872361,3327.6,3327.1,0.002]
[1768415688750,1.39272361,3328.0,3327.1,0.002]
[1768415689121,0.98872361,3327.8,3327.1,0.002]
[1768415689321,3.99380219,3327.7,3327.1,0.002]
[1768415689752,0.98872361,3327.7,3327.1,0.002]
[1768415690166,0.98872361,3327.7,3326.6,6.41114452]
[1768415690167,0.98872361,3327.6,3326.6,0.002]
[1768415690463,0.98872361,3327.6,3325.7,3.00886722]
[1768415690757,0.98872361,3327.6,3326.1,3.00650126]
[1768415691051,0.98872361,3327.6,3326.2,0.03006433]
[1768415691252,0.98872361,3327.6,3325.7,0.002]
[1768415691458,0.97005108,3327.4,3325.7,0.002]
[1768415691659,0.97005108,3327.2,3325.8,0.60159524]
[1768415692071,0.97005108,3327.2,3325.9,0.03006704]
[1768415692236,0.403,3327.3,3325.9,0.32971733]
[1768415692428,0.403,3327.3,3325.9,0.29965029]
[1768415693457,0.97005108,3327.1,3325.9,3.00667668]
[1768415693755,0.97005108,3327.1,3326.1,0.002]
[1768415694732,3.40847034,3327.3,3326.1,0.03206524]
[1768415695062,0.403,3327.3,3326.2,0.03006433]
[1768415695459,3.40845767,3327.3,3326.1,3.00852415]
[1768415695639,0.403,3327.3,3326.1,6.0150483]
[1768415695842,0.403,3327.3,3326.2,0.63758755]
[1768415696043,3.40844537,3327.3,3326.2,0.63758755]
[1768415696557,3.40848147,3327.3,3326.2,0.63758755]
[1768415696728,4.37853255,3327.3,3326.2,0.63758755]
[1768415696928,1.37305108,3327.3,3326.2,0.63758755]
[1768415697155,1.37305108,3327.3,3326.3,0.44070615]
[1768415697357,0.97005108,3327.2,3326.3,0.44070615]
[1768415697531,0.97005108,3327.2,3326.3,3.44700344]
[1768415698047,3.9755878,3327.2,3326.3,3.44700344]
[1768415698251,0.97005108,3327.2,3326.3,3.44700344]
[1768415698561,0.97005108,3327.2,3326.4,0.34470034]
[1768415699174,1.37305108,3327.3,3326.4,0.34470034]
[1768415699533,0.97005108,3327.2,3326.4,0.34470034]
[1768415699845,0.97005108,3327.2,3326.2,3.00641642]
[1768415700046,0.97005108,3327.2,3326.1,0.002]
[1768415700433,9.41934784,3327.3,3326.1,0.002]
[1768415700434,0.97005108,3327.1,3326.1,0.002]
[1768415701065,0.97005108,3326.9,3326.1,0.002]
[1768415701452,0.97005108,3327.8,3326.2,3.00642764]
[1768415701654,0.001,3328.0,3326.5,7.1845906]
[1768415701837,0.001,3328.0,3326.6,0.32970721]
[1768415702040,0.001,3328.0,3326.9,0.2996461]
[1768415702283,0.97005108,3329.1,3326.9,0.2996461]
[1768415702571,0.97005108,3329.0,3326.9,0.2996461]
[1768415703453,0.97005108,3329.0,3327.1,0.2996457]
[1768415704047,1.37405108,3329.4,3327.2,0.29964531]
[1768415704243,0.404,3329.4,3327.2,0.29964531]
[1768415704649,0.404,3329.4,3327.4,0.29964531]
[1768415704854,0.97005108,3329.3,3327.5,0.397]
[1768415705055,0.97005108,3329.1,3327.6,0.397]
[1768415705553,0.97005108,3329.1,3327.7,6.01015716]
[1768415705777,0.001,3328.7,3327.7,9.01523574]
[1768415705984,0.001,3328.7,3327.8,0.397]
[1768415706187,0.001,3328.7,3327.9,0.397]
[1768415707179,0.001,3328.7,3327.7,6.01015716]
[1768415707470,0.001,3328.7,3327.9,0.397]
[1768415707671,0.001,3328.7,3327.8,0.60101572]
[1768415707843,0.97105108,3328.7,3327.7,3.00507766]
[1768415708037,0.97105108,3328.7,3327.5,3.40220463]
[1768415708243,0.97105108,3328.7,3327.5,3.00520463]
[1768415708465,0.97105108,3328.7,3327.8,3.0049655]
[1768415708969,0.97105108,3328.7,3327.9,3.00489136]
[1768415709166,0.001,3328.7,3327.9,6.00978934]
[1768415709736,0.001,3328.7,3327.7,9.01523574]
[1768415709971,0.001,3328.7,3327.8,0.83775767]
[1768415710961,0.97105108,3328.7,3327.4,3.40229447]
[1768415711270,0.97105108,3328.7,3327.7,6.01015716]
[1768415711437,0.97105108,3328.7,3327.8,0.03004988]
[1768415711740,0.97105108,3328.7,3327.5,3.00519297]
[1768415711741,0.001,3328.7,3327.9,9.04474291]
[1768415711936,0.001,3328.7,3328.0,1.30147429]
[1768415712938,0.001,3328.7,3328.0,0.90447429]
[1768415713139,0.97105108,3328.7,3328.0,0.90447429]
[1768415713368,0.97105108,3328.7,3327.9,3.00489798]
[1768415713962,0.97105108,3328.7,3327.8,6.00989812]
[1768415715089,0.97105108,3328.7,3327.8,3.00490984]
[1768415715239,3.97527413,3328.7,3327.8,3.00490984]
[1768415715573,0.97005108,3328.6,3327.4,3.40234431]
[1768415715747,0.97005108,3328.5,3327.5,3.005193]
[1768415716077,0.97005108,3328.5,3327.5,3.0052592]
[1768415716272,0.97005108,3328.5,3327.5,6.0105184]
[1768415716484,0.97005108,3328.4,3327.5,3.0052592]
[1768415716699,0.97005108,3328.4,3326.6,0.29964131]
[1768415716700,0.97005108,3328.2,3326.2,0.29964098]
[1768415716985,0.97005108,3328.2,3326.5,3.006111]
[1768415717270,0.97005108,3328.0,3326.6,3.00600896]
[1768415717471,0.97005108,3328.0,3326.0,0.397]
[1768415717774,0.97005108,3328.0,3326.5,3.00607973]
[1768415718072,0.97005108,3327.8,3326.0,0.397]
[1768415718243,0.97005108,3327.6,3326.3,3.00633312]
[1768415719588,0.97005108,3327.6,3326.1,0.002]
[1768415720390,0.97005108,3327.4,3326.1,0.002]
[1768415720674,0.97900071,3327.2,3325.8,0.002]
[1768415721689,0.97900071,3327.2,3325.3,0.003]
[1768415721989,0.99736735,3327.1,3325.3,0.003]
[1768415722195,0.99736735,3326.7,3325.3,0.30423359]
[1768415722397,0.99736735,3326.7,3325.3,0.003]
[1768415723260,0.99736735,3326.7,3325.1,0.002]
[1768415724591,0.99736735,3326.5,3325.1,0.002]
[1768415724765,0.99736735,3326.3,3324.4,0.002]
[1768415724962,0.99736735,3326.3,3324.5,0.59913042]
[1768415725167,0.99736735,3326.3,3324.6,0.0300788]
[1768415725395,0.99736735,3326.3,3324.5,0.59913042]
[1768415726196,1.40036735,3326.2,3324.5,0.59913042]
[1768415726497,0.99736735,3326.1,3324.6,9.02364192]
[1768415726700,0.99736735,3326.1,3324.7,0.86706837]
[1768415726999,0.99736735,3325.9,3324.7,0.83699047]
[1768415727713,0.99736735,3325.9,3324.6,6.01576128]
[1768415728570,0.99736735,3325.7,3324.3,6.01930418]
[1768415729079,0.99736735,3325.7,3324.8,0.002]
[1768415730804,0.99736735,3325.6,3324.8,0.002]
[1768415732603,0.99736735,3325.4,3324.5,0.002]
[1768415732774,0.99736735,3325.2,3324.5,0.002]
[1768415733110,0.99736735,3325.2,3324.3,0.003]
[1768415733293,0.99736735,3325.2,3323.3,6.01811452]
[1768415733498,0.99736735,3325.2,3323.3,6.00911452]
[1768415733686,0.99736735,3325.2,3323.4,0.78730916]
[1768415734703,0.99736735,3325.0,3323.5,3.00887618]
[1768415735203,0.99736735,3325.0,3323.2,1.86397708]
[1768415735409,9.02228502,3325.1,3323.4,3.00896672]
[1768415735410,0.99736735,3324.8,3323.4,3.00896672]
[1768415735605,0.99736735,3324.8,3323.2,1.86397708]
[1768415735788,0.99736735,3324.6,3323.3,0.18659771]
[1768415735976,0.99736735,3324.6,3323.4,3.00894523]
[1768415736172,1.40036735,3324.5,3323.4,3.00894523]
[1768415736377,0.99736735,3324.4,3323.4,3.00894523]
[1768415736607,0.99736735,3324.4,3323.4,6.01791195]
[1768415736815,0.99736735,3324.3,3323.5,3.62929175]
[1768415738719,4.00557114,3324.3,3323.5,0.62045097]
[1768415738915,4.00557114,3324.3,3323.3,0.18659771]
[1768415739117,0.99736735,3324.2,3323.2,1.86397708]
[1768415739892,0.99736735,3324.2,3322.7,1.16852391]
[1768415740224,0.99736735,3324.2,3322.1,3.01008904]
[1768415740225,0.99736735,3323.0,3322.1,3.01008904]
[1768415740460,1.62636705,3322.9,3322.1,3.01013969]
[1768415740729,0.99736735,3322.7,3322.2,0.30101397]
[1768415740929,0.99736735,3322.7,3320.7,3.01134585]
[1768415740931,0.99736735,3322.7,3318.8,3.01306696]
[1768415740932,0.99736735,3322.2,3318.8,3.01306696]
[1768415741097,0.99736735,3322.2,3318.2,3.01367806]
[1768415741098,0.79133185,3319.9,3318.2,3.01367806]
[1768415741297,0.012,3319.1,3318.3,0.81869906]
[1768415741532,0.012,3319.1,3316.0,3.16196903]
[1768415741533,0.012,3319.1,3317.5,0.97550392]
[1768415741846,0.012,3319.1,3317.8,0.97550392]
[1768415741847,0.62635097,3319.0,3317.8,0.97550392]
[1768415741992,0.62635097,3319.0,3316.0,0.00596903]
[1768415741993,0.62635097,3318.9,3317.9,0.03013954]
[1768415742191,0.62635097,3318.8,3317.5,0.97550392]
[1768415742436,0.012,3319.1,3318.2,3.01367543]
[1768415742726,0.012,3319.1,3318.4,3.01350048]
[1768415742890,0.012,3319.1,3318.4,6.02700096]
[1768415743086,0.2397811,3319.5,3318.5,0.03013409]
[1768415743287,0.78545095,3320.0,3318.5,1.00563801]
[1768415743548,0.78545095,3320.0,3314.8,1.56305154]
[1768415743549,0.78545095,3319.6,3314.8,1.56305154]
[1768415743721,1.62150493,3319.9,3318.4,3.01350048]
[1768415743722,0.62413758,3319.5,3318.4,3.01350048]
[1768415743897,1.03996471,3320.1,3318.4,3.01350048]
[1768415743898,0.77997353,3320.1,3318.5,0.03013409]
[1768415744095,0.77997353,3320.1,3318.6,0.398]
[1768415744309,0.77997353,3320.2,3318.7,0.03013228]
[1768415744508,0.404,3320.9,3318.6,0.398]
[1768415744509,3.79181143,3320.3,3318.6,0.398]
[1768415744717,3.69217939,3320.3,3318.6,0.398]
[1768415744942,3.69217939,3320.3,3318.7,6.02645614]
[1768415744943,1.46031502,3320.3,3318.7,6.02645614]
[1768415745155,3.01149247,3320.7,3318.8,0.97550392]
[1768415745463,0.77997353,3320.8,3318.7,9.03968421]
[1768415745464,0.77997353,3320.8,3318.9,1.00563438]
[1768415745667,0.9932427,3321.5,3319.9,0.97550392]
[1768415745954,3.01006232,3322.2,3320.0,0.03012048]
[1768415746106,1.8609533,3322.1,3319.9,0.97550392]
[1768415746305,1.55994707,3322.0,3320.1,0.398]
[1768415746536,0.30100623,3322.1,3320.1,0.398]
[1768415746537,1.8609533,3322.1,3320.1,0.398]
[1768415746756,0.30100623,3322.1,3320.1,0.398]
[1768415746923,6.02046958,3322.0,3320.2,0.398]
[1768415747237,0.30100623,3322.1,3320.3,0.03011776]
[1768415747238,0.63214758,3321.9,3320.3,0.03011776]
[1768415747437,0.30100623,3322.1,3320.2,1.37350392]
[1768415747735,3.00996799,3322.3,3320.2,1.37350392]
[1768415747939,0.03013424,3322.2,3320.3,0.398]
[1768415748317,6.01993598,3322.3,3320.3,0.398]
[1768415748708,0.404,3322.8,3320.3,0.97550392]
[1768415748709,0.404,3322.7,3320.3,0.97550392]
[1768415748931,9.02934537,3322.5,3320.4,0.398]
[1768415749131,0.90293454,3322.4,3320.5,0.398]
[1768415749810,0.90293454,3322.4,3320.9,0.003]
[1768415751250,6.01992594,3322.3,3320.9,0.003]
[1768415751641,0.95276876,3322.2,3320.9,0.003]
[1768415751823,0.404,3322.1,3320.9,0.003]
[1768415752028,2.54285007,3322.0,3319.8,3.40922543]
[1768415752359,1.24745377,3321.9,3319.9,0.43847293]
[1768415752659,1.24745377,3321.9,3319.8,0.397]
[1768415752660,1.59008131,3321.8,3319.8,0.397]
[1768415752825,1.55994707,3321.6,3319.3,3.01266453]
[1768415753161,1.55994707,3321.6,3319.1,0.95443906]
[1768415753162,9.03233574,3321.4,3319.4,3.01257898]
[1768415753467,0.03013424,3321.3,3319.5,0.002]
[1768415753952,6.02155716,3321.4,3319.6,6.05492801]
[1768415754154,0.60215572,3321.3,3319.7,0.6056928]
[1768415754354,0.95276876,3322.0,3319.8,0.98456135]
[1768415754355,3.01050666,3321.7,3319.8,0.98456135]
[1768415754557,4.56999784,3322.3,3319.9,0.95443906]
[1768415754732,3.00987238,3322.4,3320.1,0.95443906]
[1768415755054,9.02961714,3322.4,3320.2,1.35143906]
[1768415755266,9.02961714,3322.4,3320.3,6.02355208]
[1768415755430,0.91124858,3322.3,3320.4,0.38106055]
[1768415755893,0.65710837,3322.2,3320.5,0.397]
[1768415756070,0.62697413,3322.1,3320.5,0.397]
[1768415756271,0.91124858,3322.3,3320.5,0.397]
[1768415756272,0.62697413,3322.0,3320.5,0.397]
[1768415756573,2.47119565,3322.3,3320.4,0.38106055]
[1768415756574,0.62697413,3321.9,3320.6,0.397]
[1768415756799,0.62697413,3321.8,3320.6,0.397]
[1768415757001,0.62697413,3321.7,3320.6,0.397]
[1768415757206,0.62697413,3321.6,3320.7,3.01141325]